[Event "European Amateur-ch U2000 2019"]
[Site "Rhodes"]
[Date "2019.04.11"]
[Round "4.2"]
[White "Zielinski, Olgierd"]
[Black "Demirbas, Emre"]
[Result "0-1"]
[ECO "B33"]
[WhiteElo "1850"]
[BlackElo "1960"]
[Annotator "NA RC"]
[PlyCount "96"]
[EventDate "2019.04.06"]
[EventType "swiss"]
[EventCountry "GRE"]
[SourceTitle "playchess.com"]
[Source "ChessBase"]
[SourceQuality "1"]
[TimeControl "40/5400+30:1800+30"]

1. e4 {[%emt 0:00:00]} c5 {[%emt 0:00:00]} 2. Nf3 {[%emt 0:00:00]} e6 {[%emt 0:00:00]} 3. d4 {[%emt 0:00:00]} cxd4 {[%emt 0:00:00]} 4. Nxd4 {[%emt 0:00:00]} Nf6 {[%emt 0:00:00]} 5. Nc3 $11 {[%emt 0:00:09]} Nc6 {[%emt 0:00:00]} 6. Ndb5 {[%emt 0:00:34]} d6 {[%emt 0:00:00]} 7. Bf4 {[%emt 0:00:09]} e5 {[%emt 0:00:00]} 8. Bg5 {[%emt 0:00:07]} a6 {[%emt 0:00:01]} 9. Bxf6 {[%emt 0:00:25]} gxf6 {[%emt 0:00:06]} 10. Na3 {[%emt 0:00:06]} b5 {[%emt 0:00:03]} 11. Nd5 {[%emt 0:00:10]} f5 {[%emt 0:00:05]} 12. Bxb5 {[%emt 0:00:36]} axb5 {[%emt 0:00:05]} 13. Nxb5 {[%emt 0:00:05]} Ra4 {[%emt 0:00:03]} 14. Nbc7+ {[%emt 0:00:14]} Kd7 {[%emt 0:00:04]} 15. O-O {[%emt 0:00:08]} Qg5 {[%emt 0:10:03]} 16. Nb6+ {[%emt 0:05:58]} Kxc7 {[%emt 0:00:41]} 17. Nxa4 {[%emt 0:00:04]} Rg8 {[%emt 0:00:50]} 18. g3 {[%emt 0:00:11]} fxe4 {[%emt 0:09:10]} 19. Qd5 {[%emt 0:00:20]} Qf5 {[%emt 0:08:22]} 20. Rfe1 {[%emt 0:09:44]} Bb7 {[%emt 0:12:40]} 21. Re3 {[%emt 0:21:30]} Bh6 {[%emt 0:12:43]} 22. Rb3 {[%emt 0:05:45]} Rb8 {[%emt 0:04:16]} 23. Rd1 {[%emt 0:10:02]} Qe6 {[%emt 0:04:07]} 24. Qxe4 {[%emt 0:06:35]} Nd4 {[%emt 0:08:00]} 25. Rxb7+ {[%emt 0:15:35]} Rxb7 {[%emt 0:00:01]} 26. Qxh7 {[%emt 0:07:12]} Nf5 {[%emt 0:16:03]} 27. Rd3 {[%emt 0:02:41]} Nd4 {[%emt 0:02:58]} 28. Rc3+ {[%emt 0:01:16]} Kd7 {[%emt 0:01:44]} 29. Qd3 {[%emt 0:08:02]} Qd5 {[%emt 0:02:39]} 30. Qc4 {[%emt 0:04:07]} Nf3+ {[%emt 0:07:05]} 31. Kh1 {[%emt 0:00:02]} Qxc4 {[%emt 0:01:39]} 32. Rxc4 {[%emt 0:00:02]} Rc7 {[%emt 0:00:12]} 33. Nb6+ {[%emt 0:01:24]} Kd8 {[%emt 0:00:05]} 34. c3 {[%emt 0:00:33]} Rxc4 {[%emt 0:01:46]} 35. Nxc4 {[%emt 0:00:01]} Kc7 {[%emt 0:00:18]} 36. h4 {[%emt 0:01:52]} d5 {[%emt 0:00:24]} 37. Kg2 {[%emt 0:01:21]} Nxh4+ {[%emt 0:00:56]} 38. gxh4 {[%emt 0:00:15]} dxc4 {[%emt 0:00:01]} 39. Kf3 {[%emt 0:00:11]} f5 {[%emt 0:00:07]} 40. b3 {[%emt 0:00:00]} e4+ {[%emt 0:00:00]} 41. Ke2 {[%emt 0:00:17]} cxb3 {[%emt 0:02:21]} 42. axb3 {[%emt 0:00:01]} f4 {[%emt 0:00:07]} 43. f3 {[%emt 0:03:16]} e3 {[%emt 0:00:19]} 44. Kd3 {[%emt 0:00:02]} Kd6 {[%emt 0:00:12]} 45. Ke2 {[%emt 0:01:16]} Ke6 {[%emt 0:00:27]} 46. Kd3 {[%emt 0:00:12]} Kf6 {[%emt 0:00:27]} 47. b4 {[%emt 0:00:12]} Bf8 {[%emt 0:00:07]} 48. b5 {[%emt 0:01:20]} Bc5 {[%emt 0:00:04] Kd4 [%emt 00:00:13] Ke5+} 0-1

[Event "European Amateur-ch U2000 2019"]
[Site "Rhodes"]
[Date "2019.04.11"]
[Round "4.3"]
[White "Bozinovic, Boban"]
[Black "Frontzos, Ioannis"]
[Result "1/2-1/2"]
[ECO "C45"]
[WhiteElo "1950"]
[BlackElo "1504"]
[Annotator "NA RC"]
[PlyCount "64"]
[EventDate "2019.04.06"]
[EventType "swiss"]
[EventCountry "GRE"]
[SourceTitle "playchess.com"]
[Source "ChessBase"]
[SourceQuality "1"]
[TimeControl "40/5400+30:1800+30"]

1. e4 {[%emt 0:00:00]} e5 {[%emt 0:00:00]} 2. Nf3 {[%emt 0:00:00]} Nc6 {[%emt 0:00:00]} 3. d4 {[%emt 0:00:00]} exd4 {[%emt 0:00:04]} 4. Nxd4 {[%emt 0:00:00]} Nf6 {[%emt 0:00:16]} 5. Nxc6 {[%emt 0:00:17]} bxc6 {[%emt 0:00:15]} 6. e5 {[%emt 0:00:13]} Qe7 {[%emt 0:00:25]} 7. Qe2 {[%emt 0:00:07]} Nd5 {[%emt 0:00:21]} 8. c4 {[%emt 0:00:09]} Nb6 {[%emt 0:00:26]} 9. Nd2 {[%emt 0:01:49]} Qe6 {[%emt 0:01:12]} 10. a3 {[%emt 0:03:34]} d5 {[%emt 0:04:19]} 11. exd6 {[%emt 0:04:19]} Qxe2+ {[%emt 0:09:15]} 12. Bxe2 {[%emt 0:00:01]} cxd6 {[%emt 0:00:34]} 13. O-O {[%emt 0:01:49]} Be6 {[%emt 0:05:52]} 14. Bf3 {[%emt 0:08:03]} Rc8 {[%emt 0:03:25]} 15. Re1 {[%emt 0:17:35]} Be7 {[%emt 0:02:41]} 16. b3 {[%emt 0:04:52]} Bf6 {[%emt 0:08:57]} 17. Rb1 {[%emt 0:01:19]} O-O {[%emt 0:03:31]} 18. Ne4 {[%emt 0:04:09]} Be5 {[%emt 0:10:32]} 19. Bb2 {[%emt 0:06:54]} Bf5 {[%emt 0:07:58]} 20. Bxe5 {[%emt 0:05:57]} dxe5 {[%emt 0:00:28]} 21. c5 {[%emt 0:15:40]} Nd5 {[%emt 0:07:15]} 22. Rbc1 {[%emt 0:01:30]} Bxe4 {[%emt 0:01:56]} 23. Bxe4 {[%emt 0:01:18]} Rfe8 {[%emt 0:09:24]} 24. b4 {[%emt 0:02:29]} g6 {[%emt 0:03:34]} 25. Red1 {[%emt 0:08:25]} Red8 {[%emt 0:01:40]} 26. b5 {[%emt 0:05:26]} f5 {[%emt 0:02:13]} 27. Bxd5+ {[%emt 0:00:30]} Rxd5 {[%emt 0:06:15]} 28. Rxd5 {[%emt 0:00:14]} cxd5 {[%emt 0:00:00]} 29. c6 {[%emt 0:00:06]} Kf7 {[%emt 0:00:44]} 30. a4 {[%emt 0:00:19]} Ke7 {[%emt 0:01:06]} 31. Kf1 {[%emt 0:01:21]} Kd6 {[%emt 0:01:18]} 32. Ke2 {[%emt 0:00:31]} h6 {[%emt 0:03:11]} 1/2-1/2

[Event "European Amateur-ch U2000 2019"]
[Site "Rhodes"]
[Date "2019.04.11"]
[Round "4.4"]
[White "Boesch, Heinz"]
[Black "Flis, Pawel"]
[Result "0-1"]
[ECO "A05"]
[WhiteElo "1929"]
[BlackElo "1903"]
[Annotator "NA RC"]
[PlyCount "81"]
[EventDate "2019.04.06"]
[EventType "swiss"]
[EventCountry "GRE"]
[SourceTitle "playchess.com"]
[Source "ChessBase"]
[SourceQuality "1"]
[TimeControl "40/5400+30:1800+30"]

1. e4 {[%emt 0:02:13]} c5 {[%emt 0:00:00]} 2. Nf3 {[%emt 0:00:10]} d6 {[%emt 0:00:00]} 3. g3 {[%emt 0:00:08]} Nc6 {[%emt 0:01:08]} 4. Bg2 {[%emt 0:00:15]} g6 {[%emt 0:00:06]} 5. O-O {[%emt 0:00:10]} Bg7 {[%emt 0:00:05]} 6. d3 {[%emt 0:00:21]} Nf6 {[%emt 0:02:03]} 7. Nbd2 {[%emt 0:00:27]} O-O {[%emt 0:00:17]} 8. Re1 {[%emt 0:00:12]} Rb8 {[%emt 0:02:03]} 9. a4 {[%emt 0:08:28]} a6 {[%emt 0:00:21]} 10. e5 {[%emt 0:00:38]} dxe5 {[%emt 0:05:34]} 11. Nxe5 {[%emt 0:00:14]} Nxe5 {[%emt 0:02:16]} 12. Rxe5 {[%emt 0:00:07]} Bg4 {[%emt 0:18:48]} 13. Qe1 {[%emt 0:09:05]} Nd7 {[%emt 0:12:31]} 14. Rxe7 {[%emt 0:06:58]} Be6 {[%emt 0:03:06]} 15. Rxe6 {[%emt 0:04:01]} fxe6 {[%emt 0:00:07]} 16. Qxe6+ {[%emt 0:00:05]} Kh8 {[%emt 0:00:14]} 17. Ne4 {[%emt 0:01:36]} Qe8 {[%emt 0:10:43]} 18. Qxe8 {[%emt 0:07:17]} Rbxe8 {[%emt 0:00:52]} 19. Be3 {[%emt 0:01:38]} b6 {[%emt 0:02:19]} 20. Nc3 {[%emt 0:21:42]} Bd4 {[%emt 0:07:52]} 21. Bc6 {[%emt 0:08:53]} Rxe3 {[%emt 0:17:50]} 22. fxe3 {[%emt 0:02:36]} Bxe3+ {[%emt 0:00:04]} 23. Kh1 {[%emt 0:00:06]} Ne5 {[%emt 0:00:41]} 24. Be4 {[%emt 0:06:33]} Rf2 {[%emt 0:05:30]} 25. Nd5 {[%emt 0:03:23]} Ng4 {[%emt 0:02:56]} 26. Nxe3 {[%emt 0:03:33]} Nxe3 {[%emt 0:00:15]} 27. a5 {[%emt 0:06:01]} Nxc2 {[%emt 0:03:00]} 28. Rc1 {[%emt 0:01:30]} bxa5 {[%emt 0:01:03]} 29. Bb7 {[%emt 0:01:02]} Nb4 {[%emt 0:01:03]} 30. Rxc5 {[%emt 0:00:41]} Nxd3 {[%emt 0:00:29]} 31. Rxa5 {[%emt 0:01:50]} Ne1 {[%emt 0:00:24]} 32. Kg1 {[%emt 0:02:11]} Rxb2 {[%emt 0:00:22]} 33. Bxa6 {[%emt 0:01:48]} Kg8 {[%emt 0:00:12]} 34. Kf1 {[%emt 0:00:02]} Nf3 {[%emt 0:00:15] Kg1 [%clk 00:01:30] Nxh2 [%clk 00:02:46] Kf1 [%clk 00:01:56] Nf3 [%clk 00:03:08]} 35. Be2 {[%emt 0:00:00]} Kg7 {[%emt 0:00:48]} 36. Kf2 {[%emt 0:00:41]} Nd2 {[%emt 0:00:10] Kf3 [%clk 00:01:10] Ne4 [%clk 00:02:05]} 37. Ra7+ {[%emt 0:00:00] Nxg3 [%clk 00:31:46] Bc4+ [%clk 00:31:01]} Kh6 {[%emt 0:00:00] Bg8 [%clk 00:27:31] Nf5 [%clk 00:30:44]} 38. Ra4 {[%emt 0:00:00] Ng7 [%clk 00:29:09] Bd5 [%clk 00:23:31] [%emt 00:03:54]} Rb8 {[%emt 0:00:00]} 39. Ra7 {[%emt 0:00:00] Nh5 [%clk 00:27:23] Be6 [%clk 00:21:14] [%emt 00:02:20] Nf6 [%clk 00:22:54] Bc4 [%clk 00:20:37] [%emt 00:06:06]} Rb4 {[%emt 0:00:00] Ba2 [%clk 00:18:58] [%emt 00:02:10] Rb5 [%clk 00:21:38] [%emt 00:01:15]} 40. Bc4 {[%emt 0:00:00] Rc5 [%clk 00:21:59] [%emt 00:00:08] Ba2 [%clk 00:18:07] [%emt 00:00:19]} Kg5 {[%emt 0:00:00] Bb1 [%clk 00:17:57] [%emt 00:00:41] Rc3+ [%clk 00:19:13] [%emt 00:00:56]} 41. Ke2 {[%emt 0:15:43] Rc5 [%clk 00:17:14] [%emt 00:02:29] Ke3 [%clk 00:18:07] [%emt 00:00:36] Rd5 [%clk 00:17:01] [%emt 00:00:41] Bd3 [%clk 00:15:12] [%emt 00:03:26] Rd7 [%clk 00:10:08] [%emt 00:07:22] Ra5+ [%clk 00:15:21] [%emt 00:00:23] Kh4 [%clk 00:09:52] [%emt 00:00:45] Ra6 [%clk 00:14:46] [%emt 00:01:07] Ng4+ [%clk 00:09:48] [%emt 00:00:32] Ke2 [%clk 00:14:46] [%emt 00:00:31] Re7+ [%clk 00:09:19] [%emt 00:00:58] Kd2 [%clk 00:14:52] [%emt 00:00:25] g5 [%clk 00:04:14] [%emt 00:05:33] Ra1 [%clk 00:12:26] [%emt 00:02:58] Nf2 [%clk 00:03:43] [%emt 00:01:01] Bxh7 [%clk 00:10:32] [%emt 00:02:24] Rxh7 [%clk 00:03:04] [%emt 00:01:10] Ke2 [%clk 00:10:46] [%emt 00:00:16] Nh3 [%clk 00:03:22] [%emt 00:00:10]} 0-1

[Event "European Amateur-ch U2000 2019"]
[Site "Rhodes"]
[Date "2019.04.09"]
[Round "4.5"]
[White "Mohnblatt, Daniel"]
[Black "Suliborski, Artur"]
[Result "0-1"]
[ECO "A57"]
[WhiteElo "1708"]
[BlackElo "1926"]
[Annotator "NA"]
[PlyCount "50"]
[EventDate "2019.04.06"]
[EventType "swiss"]
[EventCountry "GRE"]
[SourceTitle "playchess.com"]
[Source "ChessBase"]
[SourceQuality "1"]
[TimeControl "40/5400+30:1800+30"]

1. d4 {[%emt 0:00:00]} Nf6 {[%emt 0:00:00]} 2. c4 {[%emt 0:00:00]} c5 {[%emt 0:00:00]} 3. d5 {[%emt 0:00:00]} b5 {[%emt 0:00:00]} 4. f3 {[%emt 0:00:15]} bxc4 {[%emt 0:05:32]} 5. e4 {[%emt 0:00:10]} d6 {[%emt 0:00:16]} 6. Bxc4 {[%emt 0:00:13]} Nbd7 {[%emt 0:00:37]} 7. Ne2 {[%emt 0:00:53]} g6 {[%emt 0:00:05]} 8. O-O {[%emt 0:00:13]} Bg7 {[%emt 0:00:02]} 9. Nec3 {[%emt 0:00:12]} O-O {[%emt 0:00:32]} 10. a4 {[%emt 0:00:25]} Ne5 {[%emt 0:09:24]} 11. Be2 {[%emt 0:00:15]} Rb8 {[%emt 0:01:21]} 12. Na3 {[%emt 0:02:01]} g5 {[%emt 0:18:57]} 13. Qc2 {[%emt 0:00:50]} h6 {[%emt 0:00:18]} 14. h3 {[%emt 0:01:45]} Ng6 {[%emt 0:00:50]} 15. f4 {[%emt 0:00:48]} g4 {[%emt 0:04:43]} 16. f5 {[%emt 0:02:57]} Ne5 {[%emt 0:00:46]} 17. hxg4 {[%emt 0:00:14]} Nfxg4 {[%emt 0:03:09]} 18. Qd1 {[%emt 0:04:56]} h5 {[%emt 0:00:23]} 19. Rf4 {[%emt 0:00:32]} e6 {[%emt 0:00:19]} 20. Rxg4 {[%emt 0:00:21]} hxg4 {[%emt 0:00:34]} 21. Bxg4 {[%emt 0:00:08]} Qh4 {[%emt 0:00:04]} 22. Bh3 {[%emt 0:00:30]} exf5 {[%emt 0:00:10]} 23. exf5 {[%emt 0:00:37]} Re8 {[%emt 0:09:54]} 24. Nc2 {[%emt 0:05:25]} Ba6 {[%emt 0:02:21]} 25. Qe1 {[%emt 0:02:44]} Nf3+ {[%emt 0:00:23]} 0-1

[Event "European Amateur-ch U2000 2019"]
[Site "Rhodes"]
[Date "2019.04.11"]
[Round "4.6"]
[White "Krzysztynska, Anna"]
[Black "Mihalache, Paul-Stelian"]
[Result "0-1"]
[ECO "A46"]
[WhiteElo "1844"]
[BlackElo "1830"]
[Annotator "NA RC"]
[PlyCount "108"]
[EventDate "2019.04.06"]
[EventType "swiss"]
[EventCountry "GRE"]
[SourceTitle "playchess.com"]
[Source "ChessBase"]
[SourceQuality "1"]
[TimeControl "40/5400+30:1800+30"]

1. d4 {[%emt 0:00:00]} Nf6 {[%emt 0:00:00]} 2. Bf4 {[%emt 0:00:00]} Nc6 {[%emt 0:00:02]} 3. Nf3 {[%emt 0:00:08]} e6 {[%emt 0:00:18]} 4. e3 {[%emt 0:00:20]} d6 {[%emt 0:00:40]} 5. h3 {[%emt 0:00:35]} Qe7 {[%emt 0:01:01]} 6. c3 {[%emt 0:01:26]} e5 {[%emt 0:03:17]} 7. Bh2 {[%emt 0:03:09]} Qe6 {[%emt 0:06:41]} 8. Na3 {[%emt 0:10:58]} a6 {[%emt 0:02:43]} 9. dxe5 {[%emt 0:15:26]} dxe5 {[%emt 0:05:24]} 10. Bc4 {[%emt 0:01:11]} Qf5 {[%emt 0:07:04]} 11. g4 {[%emt 0:11:14]} Qd7 {[%emt 0:11:01]} 12. Bxe5 {[%emt 0:13:40]} Bxa3 {[%emt 0:07:25]} 13. bxa3 {[%emt 0:00:50]} Qe7 {[%emt 0:03:58]} 14. Bxf6 {[%emt 0:04:15]} Qxf6 {[%emt 0:00:43]} 15. Nd4 {[%emt 0:01:56]} Ne5 {[%emt 0:03:42]} 16. Be2 {[%emt 0:01:00]} c5 {[%emt 0:02:42]} 17. Nb3 {[%emt 0:01:22]} b6 {[%emt 0:02:23]} 18. f4 {[%emt 0:09:25]} Bb7 {[%emt 0:03:40]} 19. Rh2 {[%emt 0:01:49]} Rd8 {[%emt 0:06:01]} 20. Qc2 {[%emt 0:00:43]} Qh4+ {[%emt 0:02:21]} 21. Kf1 {[%emt 0:00:13]} Ng6 {[%emt 0:02:44]} 22. Bc4 {[%emt 0:03:29]} O-O {[%emt 0:01:58]} 23. Qf2 {[%emt 0:01:22]} Qf6 {[%emt 0:00:21]} 24. Rc1 {[%emt 0:00:20]} Rd6 {[%emt 0:03:05]} 25. Be2 {[%emt 0:04:56]} Rfd8 {[%emt 0:03:08]} 26. Kg1 {[%emt 0:02:42]} a5 {[%emt 0:02:38]} 27. a4 {[%emt 0:00:30]} Bc6 {[%emt 0:00:28]} 28. Qe1 {[%emt 0:02:34]} Bxa4 {[%emt 0:00:51]} 29. Bf3 {[%emt 0:00:26]} Bc6 {[%emt 0:03:06]} 30. Bxc6 {[%emt 0:00:40]} Rxc6 {[%emt 0:00:02]} 31. Rd2 {[%emt 0:01:26]} Rcd6 {[%emt 0:01:26]} 32. Rxd6 {[%emt 0:00:58]} Qxd6 {[%emt 0:00:56]} 33. Rc2 {[%emt 0:01:34]} a4 {[%emt 0:01:09]} 34. Rd2 {[%emt 0:01:39]} Qe7 {[%emt 0:00:59]} 35. Rxd8+ {[%emt 0:00:36]} Qxd8 {[%emt 0:00:01]} 36. Nd2 {[%emt 0:00:33]} Qd3 {[%emt 0:02:11]} 37. Nf3 {[%emt 0:00:34]} h6 {[%emt 0:02:37]} 38. Qd2 {[%emt 0:00:38]} Nxf4 {[%emt 0:01:29]} 39. Qxd3 {[%emt 0:00:42]} Nxd3 {[%emt 0:00:02]} 40. Nd2 {[%emt 0:00:00]} Nc1 {[%emt 0:00:00]} 41. a3 {[%emt 0:08:35]} Ne2+ {[%emt 0:02:38]} 42. Kf2 {[%emt 0:00:17]} Nxc3 {[%emt 0:00:08]} 43. Ke1 {[%emt 0:00:59]} b5 {[%emt 0:01:20]} 44. e4 {[%emt 0:00:45]} Kf8 {[%emt 0:00:51]} 45. Kf2 {[%emt 0:00:22]} b4 {[%emt 0:01:55]} 46. axb4 {[%emt 0:00:07]} cxb4 {[%emt 0:00:21]} 47. Ke3 {[%emt 0:00:40]} Ke7 {[%emt 0:01:42]} 48. Kd3 {[%emt 0:00:38]} Kd6 {[%emt 0:01:21]} 49. Kc4 {[%emt 0:00:27]} Ke5 {[%emt 0:01:18]} 50. Kxb4 {[%emt 0:06:55]} Nxe4 {[%emt 0:00:30]} 51. Nf1 {[%emt 0:00:27]} Kf4 {[%emt 0:02:57]} 52. Kxa4 {[%emt 0:00:15]} Kf3 {[%emt 0:00:25]} 53. Kb4 {[%emt 0:00:21]} Kf2 {[%emt 0:00:53]} 54. Nh2 {[%emt 0:00:16]} Kg2 {[%emt 0:00:22]} 0-1

[Event "European Amateur-ch U2000 2019"]
[Site "Rhodes"]
[Date "2019.04.11"]
[Round "4.7"]
[White "Nagy, Laszlo Bence"]
[Black "Wlogalski, Olivier"]
[Result "1-0"]
[ECO "A88"]
[WhiteElo "1978"]
[BlackElo "1853"]
[Annotator "NA RC"]
[PlyCount "152"]
[EventDate "2019.04.06"]
[EventType "swiss"]
[EventCountry "GRE"]
[SourceTitle "playchess.com"]
[Source "ChessBase"]
[SourceQuality "1"]
[TimeControl "40/5400+30:1800+30"]

1. d4 {[%emt 0:00:00]} f5 {[%emt 0:00:00]} 2. g3 {[%emt 0:00:04]} Nf6 {[%emt 0:00:00]} 3. Bg2 {[%emt 0:00:05]} g6 {[%emt 0:00:00]} 4. c4 {[%emt 0:02:02]} Bg7 {[%emt 0:00:00]} 5. Nc3 {[%emt 0:00:12]} O-O {[%emt 0:00:00]} 6. Nf3 {[%emt 0:00:17]} d6 {[%emt 0:00:00]} 7. O-O {[%emt 0:00:10]} c6 {[%emt 0:00:07]} 8. Be3 {[%emt 0:04:47]} Na6 {[%emt 0:02:26]} 9. Qd2 {[%emt 0:07:00]} Re8 {[%emt 0:00:28]} 10. Rfd1 {[%emt 0:00:45]} Qc7 {[%emt 0:00:26]} 11. Rac1 {[%emt 0:10:45]} Bd7 {[%emt 0:00:37]} 12. a3 {[%emt 0:00:28]} Qa5 {[%emt 0:03:57]} 13. Nd5 {[%emt 0:05:55]} Qxd2 {[%emt 0:00:10]} 14. Nxf6+ {[%emt 0:00:06]} Bxf6 {[%emt 0:00:08]} 15. Rxd2 {[%emt 0:00:41]} Rac8 {[%emt 0:06:19]} 16. b4 {[%emt 0:01:38]} Kg7 {[%emt 0:05:16]} 17. Rb1 {[%emt 0:04:36]} b5 {[%emt 0:02:42]} 18. Rc1 {[%emt 0:02:44]} bxc4 {[%emt 0:01:51]} 19. Rxc4 {[%emt 0:00:08]} Be6 {[%emt 0:01:40]} 20. Rc1 {[%emt 0:02:07]} h6 {[%emt 0:12:10]} 21. Rdc2 {[%emt 0:01:25]} Bd7 {[%emt 0:07:43]} 22. Nd2 {[%emt 0:02:12]} d5 {[%emt 0:01:21]} 23. Nb3 {[%emt 0:01:07]} g5 {[%emt 0:01:04]} 24. f4 {[%emt 0:04:51]} g4 {[%emt 0:00:20]} 25. Bd2 {[%emt 0:05:02]} e6 {[%emt 0:00:22]} 26. e3 {[%emt 0:00:19]} Be7 {[%emt 0:00:43]} 27. Bf1 {[%emt 0:00:56]} Nb8 {[%emt 0:02:02]} 28. Nc5 {[%emt 0:01:16]} Bxc5 {[%emt 0:00:31]} 29. dxc5 {[%emt 0:03:05]} Re7 {[%emt 0:04:32]} 30. Bc3+ {[%emt 0:00:48]} Kf7 {[%emt 0:00:17]} 31. Be5 {[%emt 0:01:08]} Be8 {[%emt 0:00:16]} 32. Bd6 {[%emt 0:00:16]} Rb7 {[%emt 0:01:03]} 33. Rb2 {[%emt 0:05:03]} a6 {[%emt 0:07:19]} 34. h3 {[%emt 0:08:52]} gxh3 {[%emt 0:04:23]} 35. Kh2 {[%emt 0:00:45]} Ra7 {[%emt 0:00:15]} 36. Kxh3 {[%emt 0:07:03]} Nd7 {[%emt 0:02:41]} 37. g4 {[%emt 0:02:34]} fxg4+ {[%emt 0:00:21]} 38. Kxg4 {[%emt 0:00:17]} Nf6+ {[%emt 0:00:04]} 39. Kf3 {[%emt 0:00:50]} Bd7 {[%emt 0:02:06]} 40. Bd3 {[%emt 0:00:00]} Rg8 {[%emt 0:00:00]} 41. Rh1 {[%emt 0:02:11]} h5 {[%emt 0:08:05]} 42. Be5 {[%emt 0:01:48]} Be8 {[%emt 0:00:06]} 43. Bb8 {[%emt 0:06:34]} Ra8 {[%emt 0:02:08]} 44. Bc7 {[%emt 0:00:06]} Ke7 {[%emt 0:04:29]} 45. a4 {[%emt 0:00:27]} Bg6 {[%emt 0:01:22]} 46. Bxg6 {[%emt 0:02:44]} Rxg6 {[%emt 0:00:06]} 47. Be5 {[%emt 0:11:26]} Rag8 {[%emt 0:02:06]} 48. Rh3 {[%emt 0:09:56]} Ne4 {[%emt 0:04:48]} 49. Rxh5 {[%emt 0:00:55]} Rg3+ {[%emt 0:00:37]} 50. Ke2 {[%emt 0:00:09]} Rg1 {[%emt 0:15:07]} 51. Rh7+ {[%emt 0:00:33]} Ke8 {[%emt 0:00:14]} 52. Rh2 {[%emt 0:01:43]} Rc1 {[%emt 0:05:03]} 53. Rh8 {[%emt 0:01:16]} Rxh8 {[%emt 0:03:01]} 54. Bxh8 {[%emt 0:00:02]} Kd7 {[%emt 0:00:27]} 55. Bd4 {[%emt 0:00:57]} Rh1 {[%emt 0:10:53]} 56. Kf3 {[%emt 0:01:10]} Rf1+ {[%emt 0:00:13]} 57. Kg4 {[%emt 0:02:20]} Nf2+ {[%emt 0:00:49]} 58. Kg5 {[%emt 0:00:58]} Nd3 {[%emt 0:00:03]} 59. Rb3 {[%emt 0:00:24]} Ne1 {[%emt 0:00:38]} 60. Kf6 {[%emt 0:01:30]} Nf3 {[%emt 0:00:08]} 61. Be5 {[%emt 0:01:06]} Nd2 {[%emt 0:03:32]} 62. Rb2 {[%emt 0:00:12]} Ne4+ {[%emt 0:00:08]} 63. Kf7 {[%emt 0:00:20]} Rf3 {[%emt 0:02:37]} 64. Bd4 {[%emt 0:00:21]} Ng3 {[%emt 0:02:51]} 65. b5 {[%emt 0:00:31]} axb5 {[%emt 0:00:55]} 66. axb5 {[%emt 0:00:06]} cxb5 {[%emt 0:00:12]} 67. Rxb5 {[%emt 0:00:08]} Nf5 {[%emt 0:00:15]} 68. Rb7+ {[%emt 0:00:36]} Kc8 {[%emt 0:02:40]} 69. c6 {[%emt 0:04:08]} Nd6+ {[%emt 0:00:06]} 70. Kxe6 {[%emt 0:00:18]} Nxb7 {[%emt 0:00:13]} 71. cxb7+ {[%emt 0:00:06]} Kxb7 {[%emt 0:00:12]} 72. f5 {[%emt 0:00:45]} Rh3 {[%emt 0:05:11]} 73. f6 {[%emt 0:00:09]} Rh6 {[%emt 0:00:28]} 74. Ke7 {[%emt 0:00:07]} Kc7 {[%emt 0:00:18]} 75. f7 {[%emt 0:00:07]} Rh7 {[%emt 0:00:03]} 76. Ke8 {[%emt 0:00:09]} Rh8+ {[%emt 0:01:31]} 1-0

[Event "European Amateur-ch U2000 2019"]
[Site "Rhodes"]
[Date "2019.04.09"]
[Round "4.8"]
[White "Minko, Olga"]
[Black "Zakharov, Denis"]
[Result "1-0"]
[ECO "B09"]
[WhiteElo "1833"]
[BlackElo "1889"]
[Annotator "NA RC"]
[PlyCount "45"]
[EventDate "2019.04.06"]
[EventType "swiss"]
[EventCountry "GRE"]
[SourceTitle "playchess.com"]
[Source "ChessBase"]
[SourceQuality "1"]
[TimeControl "40/5400+30:1800+30"]

1. e4 {[%emt 0:00:00]} d6 {[%emt 0:00:00]} 2. d4 {[%emt 0:00:00]} Nf6 {[%emt 0:00:21]} 3. Nc3 {[%emt 0:00:00]} g6 {[%emt 0:00:19]} 4. f4 {[%emt 0:00:06]} Bg7 {[%emt 0:00:03]} 5. Nf3 {[%emt 0:00:10]} O-O {[%emt 0:00:27]} 6. Bd3 {[%emt 0:00:27]} Nc6 {[%emt 0:02:09]} 7. O-O {[%emt 0:04:05]} e5 {[%emt 0:00:34]} 8. dxe5 {[%emt 0:00:21]} dxe5 {[%emt 0:00:15]} 9. f5 {[%emt 0:00:21]} Nb4 {[%emt 0:03:40]} 10. fxg6 {[%emt 0:07:10]} hxg6 {[%emt 0:00:10]} 11. Bg5 {[%emt 0:10:52]} Nxd3 {[%emt 0:01:45]} 12. cxd3 {[%emt 0:00:44]} c6 {[%emt 0:00:23]} 13. Kh1 {[%emt 0:01:43]} Qc7 {[%emt 0:01:39]} 14. Qc2 {[%emt 0:18:02]} b6 {[%emt 0:08:25]} 15. Nh4 {[%emt 0:19:30]} Nh7 {[%emt 0:04:30]} 16. Nd5 {[%emt 0:01:47]} Qd7 {[%emt 0:03:57]} 17. Ne7+ {[%emt 0:10:54]} Kh8 {[%emt 0:00:18]} 18. Rxf7 {[%emt 0:01:52]} Nxg5 {[%emt 0:00:47]} 19. Nhxg6+ {[%emt 0:00:22]} Kh7 {[%emt 0:00:24]} 20. Nxf8+ {[%emt 0:01:16]} Kh8 {[%emt 0:01:25]} 21. Neg6+ {[%emt 0:03:03]} Kg8 {[%emt 0:00:10]} 22. Rxd7 {[%emt 0:00:39]} Bxf8 {[%emt 0:00:19]} 23. Qc4+ {[%emt 0:00:09]} 1-0